Cogmind - Beta 13 @@@ ROGUE MODE // 2024.03.28 @ 22:53:26 Player: Ether Result: Destroyed by SJ-DU5(R) with Subdweller Beam Cannon Performance ------------- Evolutions (0) 0 Regions Visited (2) 400 Robots Destroyed (31) 155 Value Destroyed (657) 657 Prototype IDs (0) 0 Alien Tech Used (0) 0 Bonus (0) 0 TOTAL SCORE: 1212 Bonus ------- None Cogmind --------- Core Integrity 0/250 Matter 297/300 Energy 81/100 System Corruption 2% Temperature Cool (9) Movement Walking (120) Location -10/Subcaves Parts ------- > --- POWER (1) -------- (None) > --- PROPULSION (2) --- Aluminum Leg Aluminum Leg > --- UTILITY (2) ------ Small Storage Unit Signal Interpreter > --- WEAPON (2) ------- Subdweller Machine Gun > --- INVENTORY (8) ---- Aluminum Leg Aluminum Leg Subdweller Optics Sensor Array Grenade Launcher Datajack Mining Laser Multitool Peak State ------------ > --- POWER ------------ Subdweller Power Source > --- PROPULSION ------- Aluminum Leg Aluminum Leg > --- UTILITY ---------- Small Storage Unit Signal Interpreter > --- WEAPON ----------- Riot Gun Subdweller Machine Gun > --- INVENTORY -------- Aluminum Leg Aluminum Leg Subdweller Optics Sensor Array Battle Rifle Grenade Launcher Datajack Mining Laser [Rating: 12] Favorites ----------- Power Ion Engine Engine Ion Engine Propulsion Aluminum Leg Leg Aluminum Leg Flight Unit Flight Unit Utility Small Storage Unit Device Improved Terrain Scanner Storage Small Storage Unit Processor Signal Interpreter Weapon Light Assault Rifle Energy Gun Riot Gun Ballistic Gun Light Assault Rifle Ballistic Cannon Battle Cannon Build | -11 -10 -10 ------- Run | Yrd Mat Sub Slots Evolved . | . . . Power . | . . . Propulsion . | . . . Utility . | . . . Weapon . | . . . Parts Attached 31 | 7 12 12 Power 5 | 1 2 2 Engine 5 | 1 2 2 Core . | . . . Reactor . | . . . Propulsion 12 | 2 5 5 Treads . | . . . Leg 10 | 2 3 5 Wheel . | . . . Hover . | . . . Flight 2 | . 2 . Utility 3 | 2 1 . Device 1 | 1 . . Storage 1 | 1 . . Processor 1 | . 1 . Hackware . | . . . Protection . | . . . Artifact . | . . . Weapon 11 | 2 4 5 Energy Gun 2 | . . 2 Energy Cannon . | . . . Ballistic Gun 8 | 2 4 2 Ballistic Cannon 1 | . . 1 Launcher . | . . . Special Weapon . | . . . Impact Weapon . | . . . Slashing Weapon . | . . . Piercing Weapon . | . . . Special Melee Weapon . | . . . Unidentified Prototypes . | . . . Parts Lost 8 | . 2 6 Power 3 | . 1 2 Propulsion 1 | . . 1 Utility 1 | . 1 . Weapon 3 | . . 3 Highest Loss Streak 2 | . 2 2 To Critical Strikes 1 | . . 1 Average Slot Usage (%) 94 | . 94 94 Engine 12 | . 13 10 Leg 24 | . 23 27 Flight 1 | . 2 . Device 3 | . 6 . Storage 14 | . 14 14 Processor 8 | . 4 14 Energy Gun 2 | . . 7 Ballistic Gun 23 | . 27 16 Ballistic Cannon 1 | . . 3 Naked Turns . | . . . Heaviest Build 17 | 14 14 17 Greatest Support 20 | 20 20 20 Greatest Overweight (x) 3 | 3 2 1 Average Overweight (x) . | . . . Largest Inventory Capacity 8 | 8 8 8 Average Capacity 7 | 7 8 8 Most Carried 8 | 6 8 8 Average Carried 7 | 4 7 7 Final Capacity 8 | 8 8 8 Final Carried 8 | 5 8 8 Class Distribution -------------------- 50% | Mutant 49% | Scavenger-Mutant Dominant Class ---------------- Mutant | -10/Materials Scavenger-Mutant | -10/Subcaves Resources | -11 -10 -10 ----------- Run | Yrd Mat Sub Matter Collected 1063 | 330 374 359 Remotely . | . . . Salvage Created 1007 | 191 499 317 Parts 75 | 16 38 21 Haulers Intercepted 1 | . 1 . Recyclers Shooed 1 | . 1 . Parts Field Recycled . | . . . Retrieved Matter . | . . . Parts Self-Destructed 10 | . . 10 Prevented . | . . . Kills | -11 -10 -10 ------- Run | Yrd Mat Sub Combat Hostiles Destroyed 18 | . 10 8 Guns 14 | . 10 4 Cannons 3 | . . 3 AOE 1 | . . 1 Classes Destroyed 9 | 2 6 1 Worker 1 | . 1 . Builder 1 | . 1 . Tunneler 5 | 5 . . Hauler 1 | . 1 . Recycler 2 | 1 1 . Watcher 3 | . 3 . Swarmer 5 | . 5 . Grunt 7 | . 5 2 Subdweller 6 | . . 6 Best Kill Streak 5 | 2 5 2 Combat Bots Only 4 | . 4 2 Max Kills in Single Turn 1 | 1 1 1 Gunslinging . | . . . Exploded 1 | . . 1 Melee . | . . . Uniques/NPCs Destroyed . | . . . Combat | -11 -10 -10 -------- Run | Yrd Mat Sub Hostile Shots Fired 137 | . 76 61 Missed 43 | . 23 20 Damage Taken 1448 | . 488 960 Core 261 | . 78 183 Absorbed by Shields . | . . . Core Remaining (%) 100 | 100 . . Volleys Fired 152 | 15 81 56 Largest 2 | 2 2 2 Hottest 85 | 40 40 85 Shots Fired 279 | 30 155 94 Gun 260 | 30 155 75 Cannon 19 | . . 19 Launcher . | . . . Special . | . . . Kinetic 272 | 30 155 87 Thermal 3 | . . 3 Explosive . | . . . Electromagnetic 4 | . . 4 Robot Hit Streak 12 | 9 12 12 Robot Miss Streak 6 | 2 6 4 Penetration Max . | . . . Secondary Targets 1 | . 1 . Max Gunslinging Chain 1 | . 1 . Shots Hit Robots 179 | 20 94 65 Core Hits 61 | 9 35 17 Critical Kills . | . . . Critical Parts Destroyed . | . . . Critical Strikes 2 | . . 2 Blast 2 | . . 2 Melee Attacks . | . . . Impact . | . . . Slashing . | . . . Piercing . | . . . Sneak Attacks . | . . . Combat Hostiles . | . . . Follow-up Attacks . | . . . Damage Inflicted 1908 | 226 859 823 Guns 1552 | 226 859 467 Cannons 287 | . . 287 Explosions 69 | . . 69 Melee . | . . . Ramming . | . . . Kinetic 1794 | 226 859 709 Thermal 69 | . . 69 Explosive . | . . . Electromagnetic 45 | . . 45 Impact . | . . . Slashing . | . . . Piercing . | . . . Highest Corruption 2 | . 2 2 Average Corruption 2 | . 2 2 Corruption Purged . | . . . Corruption Blocked . | . . . Effects 22 | . 7 15 Message Errors 3 | . 1 2 Matter Fused 6 | . 4 2 Heat Flow Errors 2 | . . 2 Energy Discharges 6 | . 2 4 Parts Fused 1 | . . 1 Data Loss (minor) 4 | . . 4 Overload Shots . | . . . Overflow Damage . | . . . Projectiles . | . . . Explosions . | . . . Melee . | . . . Knockbacks . | . . . Impact . | . . . Kinetic . | . . . Secondary . | . . . Self-Inflicted Damage 59 | . . 59 Shots 1 | . . 1 Rammed . | . . . Targets Rammed . | . . . Kicked . | . . . Crushed . | . . . Highest Temperature 154 | . 26 154 Average Temperature 15 | . 6 38 Received Heat Transfer 303 | . 87 216 Siege Activations . | . . . Robots Corrupted . | . . . Combat Hostiles . | . . . Parts Fried . | . . . Impact Corruptions . | . . . Robots Melted . | . . . Combat Hostiles . | . . . Parts Melted . | . . . Heat Transferred 50 | . . 50 Parts Sabotaged . | . . . Parts Stolen . | . . . Parts Stripped . | . . . Power Chain Reactions 1 | . . 1 Alert | -11 -10 -10 ------- Run | Yrd Mat Sub Peak Influence 207 | 30 207 . Initial 19 | . 19 . Average 33 | 16 36 . Maximum Alert Level 1 | . 1 . Low Security (%) 97 | 100 96 . Level 1 2 | . 3 . Level 2 . | . . . Level 3 . | . . . Level 4 . | . . . Level 5 . | . . . High Security . | . . . Max Security . | . . . Squads Dispatched 2 | . 2 . Investigation . | . . . Extermination . | . . . Reinforcement 2 | . 2 . Assault . | . . . Garrison . | . . . Intercept . | . . . Searches Triggered . | . . . Construction Impeded . | . . . Haulers Reinforced . | . . . Active Scanning Responses . | . . . Cargo Convoy Interrupts . | . . . Stealth | -11 -10 -10 --------- Run | Yrd Mat Sub Distress Signals . | . . . Communications Jammed . | . . . Distress Signals . | . . . Times Spotted 30 | . 18 12 Peak Tracking Total 5 | . 5 3 Tactical Retreats 1 | . 1 . Traps | -11 -10 -10 ------- Run | Yrd Mat Sub Traps Triggered 1 | . 1 . Indirectly . | . . . Trap Hack Attempts . | . . . Triggered . | . . . Disarmed . | . . . Reprogrammed . | . . . Reused . | . . . Traps Extracted . | . . . Installed . | . . . Triggered . | . . . Machines | -11 -10 -10 ---------- Run | Yrd Mat Sub Machines Disabled . | . . . Max in Single Turn . | . . . Machines Repaired . | . . . Machines Dismantled . | . . . Machines Sabotaged . | . . . Overloaded Fab Kills . | . . . Hacking | -11 -10 -10 --------- Run | Yrd Mat Sub Machines Accessed 10 | . 9 1 Terminals 6 | . 6 . Fabricators . | . . . Repair Stations 1 | . 1 . Recycling Units 2 | . 2 . Scanalyzers . | . . . Garrison Access . | . . . Total Hacks 21 | . 19 2 Successful 14 | . 12 2 Failed 7 | . 7 . Catastrophic 2 | . 2 . Database Lockouts . | . . . Manual . | . . . Terminals 12 | . 12 . Fabricators . | . . . Repair Stations 3 | . 3 . Recycling Units 4 | . 4 . Scanalyzers . | . . . Garrison Access . | . . . Terminal Hacks 9 | . 7 2 Record 3 | . 1 2 Branch Access Points 1 | . 1 . Locate Traps 1 | . 1 . Dispatch Records 1 | . 1 . Hauler Manifests 1 | . 1 . Registered Prototypes 1 | . 1 . Zone Layout 1 | . 1 . Fabricator Hacks . | . . . Repair Station Hacks 2 | . 2 . Scan Component 2 | . 2 . Recycling Unit Hacks 3 | . 3 . Report Inventory 2 | . 2 . Retrieve Components 1 | . 1 . Scanalyzer . | . . . Garrison Access Hacks . | . . . Unauthorized Hacks . | . . . Terminals . | . . . Fabricators . | . . . Repair Stations . | . . . Recycling Units . | . . . Scanalyzers . | . . . Garrison Access . | . . . Data Cores Recovered . | . . . Used . | . . . Hacking Detections 7 | . 7 . Full Trace Events 2 | . 2 . Feedback Events . | . . . Feedback Blocked . | . . . Robot Schematics Acquired . | . . . Robots Built . | . . . Authchips . | . . . Time . | . . . Total Robot Build Rating . | . . . Part Schematics Acquired . | . . . Parts Built . | . . . Authchips . | . . . Time . | . . . Total Part Build Rating . | . . . Parts Repaired . | . . . Time . | . . . Parts Recycled . | . . . Recycled Matter . | . . . Retrieved Matter . | . . . Retrieved Components 9 | . 9 . Parts Scanalyzed . | . . . Part Schematics Acquired . | . . . Parts Damaged . | . . . Bothacking | -11 -10 -10 ------------ Run | Yrd Mat Sub Used RIF Installer . | . . . Robots Hacked . | . . . Non-combat . | . . . Combat . | . . . Robot Hacks Applied . | . . . Relay Couplers Released . | . . . Fabnet Peak Effective % . | . . . Robots Rewired . | . . . Allies Hacked . | . . . Hacks Repelled . | . . . Allies | -11 -10 -10 -------- Run | Yrd Mat Sub Total Allies . | . . . Largest Group . | . . . Highest-Rated Group . | . . . Highest-Rated Ally . | . . . Total Orders . | . . . Ally Attacks . | . . . Total Damage . | . . . Kills . | . . . Allies Corrupted . | . . . Allies Melted . | . . . Intel | -11 -10 -10 ------- Run | Yrd Mat Sub Robot Analysis Total . | . . . Derelict Logs Recovered . | . . . Drone Launches . | . . . Drone Recoveries . | . . . Exploration | -11 -10 -10 ------------- Run | Yrd Mat Sub Turns Passed 3670 | 268 2075 1327 Spaces Moved 2469 | 146 1368 955 Core 6 | 6 . . Treads . | . . . Legs 2339 | 140 1244 955 Wheels . | . . . Hover . | . . . Flight 124 | . 124 . Fastest Speed 37 | 50 37 120 Average Speed 123 | 121 125 120 Slowest Speed 210 | 200 210 190 Overloaded Moves . | . . . Propulsion Burnouts . | . . . Robots Hopped . | . . . Cave-ins Triggered . | . . . Exploration Rate (%) 49 | 6 99 44 Regions Visited 2 Branch Regions 1 Pre-discovered Areas 1 | . . 1 Known Exits Taken 1 | . 1 . Unknown Exits Taken 1 | 1 . . Scrap Searched 7 | . . 7 Spaces Dug . | . . . Terrain Destroyed 11 | . . 11 Melee . | . . . Projectile . | . . . AOE 11 | . . 11 Terrain Rammed . | . . . Walls Destroyed . | . . . Machines Disabled . | . . . Actions | -11 -10 -10 --------- Run | Yrd Mat Sub Total 2854 | 207 1599 1048 Wait 166 | 33 115 18 Move 2467 | 145 1367 955 Hop . | . . . Pick Up 20 | 7 10 3 Fast Attach 13 | 5 5 3 Attach 8 | 2 3 3 Detach 1 | . 1 . Swap 10 | . 4 6 Drop 17 | . 13 4 Fire 152 | 15 81 56 Melee . | . . . Ram . | . . . Kick . | . . . Crush . | . . . Escape Stasis . | . . . Rewire . | . . . Trap . | . . . Miscellaneous . | . . . Route ------- -11/Scrapyard -10/Materials (discovered 6 exits: *Mat x3 / *Min x2 / *Sub) -10/Subcaves History --------- Turn | Location | Event 13 | -11/Scrapyard | Discovered new exit (range 15) 269 | -11/Scrapyard | Entered Materials 308 | -10/Materials | Build established: Mutant 353 | -10/Materials | Discovered new exit (range 15) 710 | -10/Materials | Discovered new exit (range 10) 714 | -10/Materials | Discovered new exit (range 13) 1019 | -10/Materials | Discovered new exit (range 8) 1619 | -10/Materials | Identified exit to Mines 1640 | -10/Materials | Build established: Scavenger-Mutant 1657 | -10/Materials | Discovered new exit (range 9) 1666 | -10/Materials | Identified exit to Materials 2159 | -10/Materials | Identified exit to Subcaves 2344 | -10/Materials | Entered Subcaves 2443 | -10/Subcaves | A swath of the cavern ceiling suddenly collapsed 2561 | -10/Subcaves | Core integrity fell below 50% 2626 | -10/Subcaves | Shifting Twisted Machinery released Sub. Power Source 2648 | -10/Subcaves | Shifting Twisted Machinery released Mak. Shrapnel Gun 2667 | -10/Subcaves | Shifting Twisted Machinery released Battle Rifle 2685 | -10/Subcaves | Visited Clippyterm 2777 | -10/Subcaves | Shifting Twisted Machinery released Mak. Flight Unit 2885 | -10/Subcaves | Core integrity fell below 20% 2904 | -10/Subcaves | Build established: Mutant 3187 | -10/Subcaves | Disturbed a concealed Subdweller 3260 | -10/Subcaves | Build established: Scavenger-Mutant 3290 | -10/Subcaves | Learned location of Zion (-7) 3290 | -10/Subcaves | Met a Zionite searching for "candidates" 3671 | -10/Subcaves | Destroyed by SJ-DU5(R) with Subdweller Beam Cannon Last Messages --------------- 03352_ Searching scrap... 03352_ Found Sub. Shrapnel Launcher. 03352_ Found 23 Matter. 03353_ Searching scrap... 03353_ Found Sub. Machine Gun. 03353_ Found 17 Matter. 03406_ JUNI#JAHQ5WUZ2LJLDRPQ |K> 03416_ Dropped Battle Rifle. 03416_ Acquired Multitool. 03477_ Sub. Power Source shoots sparks and powers down. 03505_ Dropped Broken Sub. Power Source. 03545_ Searching scrap... 03545_ Found Sub. Monowheel. 03545_ Found Piercing Trap. 03545_ Found 18 Matter. 03546_ Acquired 14 matter. 03550_ System corrupted: Matter fused (-6). 03614_ Z0LA4BMW3SJQEPN8HK2LVBRDRIM:EINY3WPQOO|% 03671_ Riot Gun destroyed. Map ----- +----------------------------------------------------+ | ?????????????????????????????????????????????????? | | ????????????????????????????????????####?????????? | | ????????????????????????????????????#" ?????????# | | ????????????????????????????????????#" #?????????# | | ????????????????????????????????????#""####???#### | | ????????????????????????????????????#" %%"#####""& | | ????????????????????????????????????#"] [#% = | | ????????????????????????????????????## ## " | | ?????????????????????????????????????## ""## "### | | ????????????????????????????????????#######" "### | | ????????????####?????????????????#### ### " # | | ???????????## ##??????????????### | | ??????????## #??????######### !## ## | | ######## ##?????# # ## | | " """ ##???## * | | """ ##" ## ##### | | | ?????##"" #### ### # ## ## | | ??????#"" #??### ## ##### # ### #### | | ??????#""###????## # ## # ##?####??# | | ?????# #??????## ## # ##???????# | | ?????# #?????## #### # #### #?####### | | ?????## ?????#"" ##### #####???# #?# # | | ??????# ?????#""## #???????# #?# # | | ??????"" ????" ##?## ######???## ##?## ## | | ?????? ""??? "#????# RR## # ##???###???## #? | | ?????"" ??####????## @ #?########### #? | | ???????????????????# ### # ## ###? | | ???????????????????# ## ##??? | | ???????????????????## # #???? | | ????????????????????## [ ### # #############???? | | ?????????????????????## ##?######???????????????? | | ??????????????????????####???????????????????????? | | ?????????????????????????????????????????????????? | | ?????????????????????????????????????????????????? | | ?????????????????????????????????????????????????? | | ?????????????????????????????????????????????????? | | ?????????????????????????????????????????????????? | | ?????????????????????????????????????????????????? | | ?????????????????????????????????????????????????? | | ?????????????????????????????????????????????????? | | ?????????????????????????????????????????????????? | | ?????????????????????????????????????????????????? | | ?????????????????????????????????????????????????? | | ?????????????????????????????????????????????????? | | ?????????????????????????????????????????????????? | | ?????????????????????????????????????????????????? | | ?????????????????????????????????????????????????? | | ?????????????????????????????????????????????????? | | ?????????????????????????????????????????????????? | | ?????????????????????????????????????????????????? | +----------------------------------------------------+ Best States ------------- Heat Dissipation 25 Energy Generation 15 Energy Capacity 250 Matter Stores 300 Matter Capacity 300 Sight Range 16 Terrain Scan Range 16 Terrain Scan Density 10 Evasion (%) 55 Item Schematics ----------------- None Robot Schematics ------------------ None Fabricated ------------ Nothing Alien Tech Used ----------------- None Achievements -------------- None Challenges ------------ None Game ------ Seed GuidedLegEdition Manual? 0 Play Time 00:31:37 Cumulative 17.9 hours Start 2024.03.28 @ 22:26:06 End 2024.03.28 @ 22:53:26 Sessions 1 Manual Loads 0 Difficulty Rogue Special Mode None Game No. 48 Rogue 48 Adventurer 0 Explorer 0 Win Type - Total 0 Types 0/0/0/0/0/0/0/0/0 Lore% 17 Gallery% 22 Achievement% 15 Wizard Run 0 Options --------- Layout 1 ASCII 0 Keyboard 0 Movement Numpad Keybinds 0 Fullscreen 1 Font 24/Smallcaps Map View 50x35 Zoom Use 0% Tactical HUD 1 Map Filters NONE Filters NONE Steam 1 RUN: 144447e6-e055-493f-a566-eb44d8dbfccc